bitfinex/quotes_BTCUSD_20240915
["timestamp","ask_amount","ask_price","bid_price","bid_amount"]
[1726418785473,0.001646,60115.0,60113.0,0.166352]
[1726418785571,0.001646,60115.0,60114.0,0.16635]
[1726418786013,0.001646,60115.0,60112.0,0.69077058]
[1726418786445,0.001646,60115.0,60113.0,0.166353]
[1726418786909,0.007646,60115.0,60114.0,0.16635]
[1726418787155,0.007646,60115.0,60113.0,0.166352]
[1726418787372,0.001646,60115.0,60113.0,0.166352]
[1726418787811,0.004646,60115.0,60113.0,0.166352]
[1726418788929,0.004646,60115.0,60114.0,0.16635]
[1726418789807,0.001646,60115.0,60114.0,0.16635]
[1726418790033,0.003646,60115.0,60114.0,0.16635]
[1726418790518,0.001646,60115.0,60114.0,0.16635]
[1726418790745,0.001646,60115.0,60114.0,0.499051]
[1726418790975,0.003646,60115.0,60114.0,0.499051]
[1726418791198,0.003646,60115.0,60114.0,0.831752]
[1726418791900,0.003646,60115.0,60114.0,0.499051]
[1726418792332,0.003646,60115.0,60114.0,0.831752]
[1726418794132,0.003646,60115.0,60114.0,0.499051]
[1726418794380,0.003646,60115.0,60114.0,0.831752]
[1726418795837,0.001646,60115.0,60114.0,0.831752]
[1726418796327,0.001646,60115.0,60114.0,1.167453]
[1726418796590,0.40918976,60116.0,60115.0,0.522042]
[1726418796967,0.5037,60146.0,60116.0,0.113]
[1726418797162,0.4157939,60144.0,60120.0,0.03]
[1726418797401,0.5037,60146.0,60139.0,0.332561]
[1726418797402,0.99783802,60142.0,60139.0,0.332561]
[1726418797642,0.669963,60146.0,60139.0,0.332561]
[1726418797643,0.669963,60146.0,60140.0,0.166278]
[1726418797921,0.166265,60145.0,60139.0,0.166279]
[1726418798180,0.1,60145.0,60138.0,0.19170858]
[1726418798417,0.669963,60146.0,60142.0,0.19170858]
[1726418798655,0.5037,60146.0,60142.0,0.19170858]
[1726418798906,0.669962,60146.0,60142.0,0.19170858]
[1726418799133,0.166265,60145.0,60142.0,0.19170858]
[1726418799409,0.5037,60146.0,60142.0,0.19170858]
[1726418799410,0.69605372,60146.0,60142.0,0.19170858]
[1726418799667,0.52979172,60146.0,60142.0,0.19170858]
[1726418799915,0.69605472,60146.0,60142.0,0.19150858]
[1726418800652,0.02609172,60146.0,60144.0,0.166266]
[1726418800971,0.02609172,60146.0,60145.0,0.166264]
[1726418801370,0.02609172,60146.0,60145.0,0.498793]
[1726418801373,0.02609172,60146.0,60145.0,0.831322]
[1726418803017,0.02609172,60146.0,60145.0,1.163851]
[1726418803532,0.02609172,60146.0,60145.0,1.164851]
[1726418803823,0.001646,60157.0,60152.0,0.498736]
[1726418804035,0.001646,60157.0,60152.0,0.69044458]
[1726418804505,0.001646,60157.0,60152.0,1.02293558]
[1726418806087,0.001646,60157.0,60152.0,1.02793558]
[1726418806530,0.001646,60157.0,60152.0,1.02693558]
[1726418806750,0.001646,60157.0,60152.0,1.03193558]
[1726418806972,0.001646,60157.0,60152.0,1.02793558]
[1726418807212,0.001646,60157.0,60152.0,1.36042658]
[1726418807433,0.001646,60157.0,60152.0,1.35542658]
[1726418807656,0.002648,60153.0,60152.0,1.36642658]
[1726418808115,0.002648,60153.0,60152.0,1.38942658]
[1726418808368,0.002648,60153.0,60152.0,1.40042658]
[1726418808960,0.002648,60153.0,60152.0,1.40242658]
[1726418809214,0.001646,60157.0,60156.0,1.04587858]
[1726418809476,0.001646,60157.0,60156.0,1.37834658]
[1726418810418,0.001646,60157.0,60156.0,1.38534658]
[1726418810673,0.002646,60157.0,60156.0,1.39334658]
[1726418811157,0.002646,60157.0,60156.0,1.38634658]
[1726418811635,0.002646,60157.0,60156.0,1.39334658]
[1726418811856,0.002646,60157.0,60156.0,1.38634658]
[1726418812082,0.001646,60157.0,60156.0,1.37834658]
[1726418812355,0.002646,60157.0,60156.0,1.38634658]
[1726418812821,0.001646,60157.0,60156.0,1.37834658]
[1726418813043,0.001646,60157.0,60156.0,1.39234658]
[1726418813270,0.002646,60157.0,60156.0,1.40534658]
[1726418813511,0.002646,60157.0,60156.0,1.43866658]
[1726418813721,0.0039791,60161.0,60160.0,1.163561]
[1726418813941,0.0039791,60161.0,60160.0,1.37826958]
[1726418815312,0.0039791,60161.0,60160.0,1.39026958]
[1726418815313,0.0049791,60161.0,60160.0,1.39026958]
[1726418816564,0.0039791,60161.0,60160.0,1.39226958]
[1726418817039,0.0049791,60161.0,60160.0,1.40426958]
[1726418818178,0.0039791,60161.0,60160.0,1.39226958]
[1726418818427,0.0049791,60161.0,60160.0,1.40626958]
[1726418819131,0.0039791,60161.0,60160.0,1.39226958]
[1726418819354,0.0039791,60161.0,60160.0,1.37826958]
[1726418819581,0.0049791,60161.0,60160.0,1.40626958]
[1726418820278,0.0039791,60161.0,60160.0,1.40626958]
[1726418821624,0.0039791,60161.0,60160.0,1.41926958]
[1726418821854,0.0049791,60161.0,60160.0,1.41926958]
[1726418822802,0.0066251,60161.0,60160.0,1.227561]
[1726418823022,0.0066251,60161.0,60160.0,0.539669]
[1726418823247,0.0066251,60161.0,60160.0,0.041]
[1726418823471,0.3353251,60161.0,60160.0,0.041]
[1726418823683,0.3353251,60161.0,60160.0,0.373446]
[1726418823912,0.34265962,60161.0,60160.0,0.511669]
[1726418824207,0.34265962,60161.0,60160.0,0.512669]
[1726418824645,0.34265962,60161.0,60160.0,0.499669]
[1726418824863,0.34165962,60161.0,60160.0,0.499669]
[1726418825505,0.34165962,60161.0,60160.0,0.501669]
[1726418825947,0.34165962,60161.0,60160.0,0.499669]
[1726418826157,0.34165962,60161.0,60160.0,0.498669]
[1726418826368,0.34165962,60161.0,60160.0,0.501669]
[1726418827236,0.3343251,60161.0,60160.0,0.501669]
[1726418827462,0.34172213,60161.0,60160.0,1.02582358]
[1726418827963,0.34172213,60161.0,60160.0,1.35826958]
[1726418828196,0.3343251,60161.0,60160.0,1.35826958]
[1726418828428,0.01302213,60161.0,60160.0,1.35826958]
[1726418828647,0.5051,60169.0,60166.0,0.166205]
[1726418828865,0.5051,60169.0,60167.0,0.166203]
[1726418830000,0.5121,60169.0,60167.0,0.166203]
[1726418830463,0.166204,60167.0,60166.0,0.001]
[1726418830705,0.5121,60169.0,60166.0,0.001]
[1726418830706,0.5121,60169.0,60167.0,0.001]
[1726418830970,0.166201,60168.0,60166.0,0.001]
[1726418831235,0.166201,60168.0,60163.0,0.166213]
[1726418831236,0.166201,60168.0,60164.0,0.166211]
[1726418831745,0.166201,60168.0,60158.0,0.332456]
[1726418831746,0.166201,60168.0,60167.0,0.003]
[1726418831956,0.498603,60168.0,60167.0,0.001]
[1726418832587,0.166204,60167.0,60166.0,0.003]
[1726418832801,0.166204,60167.0,60162.0,0.166217]
[1726418833228,0.166207,60166.0,60162.0,0.166217]
[1726418833656,0.498604,60168.0,60162.0,0.166217]
[1726418833869,0.498604,60168.0,60166.0,0.001]
[1726418834332,0.52468445,60168.0,60166.0,0.001]
[1726418834557,0.19228245,60168.0,60163.0,0.166214]
[1726418834990,0.166204,60167.0,60166.0,0.004]
[1726418835522,0.166204,60167.0,60162.0,0.166216]
[1726418835740,0.166204,60167.0,60166.0,0.003]
[1726418835964,0.498612,60167.0,60166.0,0.003]
[1726418836180,0.166215,60163.0,60159.0,0.166225]
[1726418836400,0.5051,60169.0,60157.0,0.167051]
[1726418836401,0.16622,60161.0,60157.0,0.167051]
[1726418836637,0.166228,60158.0,60157.0,0.000822]
[1726418836922,0.686185,60158.0,60157.0,0.000822]
[1726418837130,1.001885,60158.0,60157.0,0.000822]
[1726418837351,1.334342,60158.0,60157.0,0.000822]
[1726418837568,1.334342,60158.0,60151.0,0.02073241]
[1726418837569,0.166245,60152.0,60151.0,0.02073241]
[1726418838018,0.166243,60153.0,60151.0,0.02073241]
[1726418838270,0.166243,60153.0,60146.0,0.36651488]
[1726418838271,0.166245,60152.0,60146.0,0.000823]
[1726418838487,0.16624,60154.0,60146.0,0.333343]
[1726418838712,0.332466,60157.0,60150.0,0.16625]
[1726418838934,0.166238,60155.0,60151.0,0.005]
[1726418839155,0.16624,60154.0,60151.0,0.005]
[1726418839397,0.332466,60157.0,60148.0,0.166254]
[1726418839398,0.166244,60153.0,60148.0,0.166254]
[1726418839586,0.332466,60157.0,60146.0,0.333343]
[1726418839587,0.166245,60152.0,60146.0,0.000823]
[1726418839800,0.003,60152.0,60148.0,0.166254]
[1726418840448,0.003,60152.0,60151.0,0.001]
[1726418840878,0.003,60152.0,60148.0,0.166254]
[1726418841093,0.005,60152.0,60148.0,0.167254]
[1726418842011,0.005,60152.0,60149.0,0.166253]
[1726418842240,0.005,60152.0,60150.0,0.16625]
[1726418842455,0.166239,60155.0,60150.0,0.16625]
[1726418842678,0.002,60152.0,60150.0,0.16625]
[1726418843415,0.004,60152.0,60150.0,0.16625]
[1726418843638,0.1923228,60155.0,60150.0,0.16625]
[1726418843858,0.002,60152.0,60150.0,0.16625]
[1726418844306,0.002,60152.0,60146.0,0.000823]
[1726418844541,0.002,60152.0,60149.0,0.166252]
[1726418845489,0.166242,60154.0,60149.0,0.166252]
[1726418845735,0.006,60155.0,60147.0,0.332515]
[1726418845953,0.166236,60156.0,60151.0,0.166248]
[1726418846171,0.166236,60156.0,60146.0,0.000823]
[1726418846172,0.166238,60155.0,60148.0,0.33251]
[1726418846385,0.002,60152.0,60150.0,0.166249]
[1726418846597,0.166238,60155.0,60150.0,0.166249]
[1726418846818,0.172238,60155.0,60150.0,0.166249]
[1726418847561,0.006,60155.0,60149.0,0.166251]
[1726418847782,0.166243,60153.0,60149.0,0.166251]
[1726418848910,0.166239,60155.0,60149.0,0.166251]
[1726418849139,0.166239,60155.0,60146.0,0.000823]
[1726418849140,0.006,60153.0,60146.0,0.000823]
[1726418849371,0.006,60153.0,60151.0,0.166247]
[1726418849857,0.002,60153.0,60151.0,0.166247]
[1726418850526,0.006,60155.0,60151.0,0.166247]
[1726418850770,0.01,60155.0,60151.0,0.166247]
[1726418851231,0.006,60155.0,60151.0,0.166247]
[1726418851454,0.166235,60156.0,60151.0,0.166247]
[1726418851673,0.002,60153.0,60151.0,0.166247]
[1726418852123,0.166235,60156.0,60151.0,0.166247]
[1726418852399,0.004,60153.0,60151.0,0.166247]
[1726418853047,0.004,60153.0,60152.0,0.166245]
[1726418853271,0.004,60153.0,60152.0,0.498736]
[1726418853497,0.669429,60158.0,60152.0,0.332491]
[1726418853747,0.669429,60158.0,60154.0,0.166238]
[1726418853967,0.669429,60158.0,60153.0,0.166242]
[1726418854184,0.166231,60157.0,60153.0,0.166242]
[1726418854854,0.007,60156.0,60152.0,0.166245]
[1726418855106,0.166231,60157.0,60152.0,0.166245]
[1726418855322,0.166234,60156.0,60152.0,0.166245]
[1726418855532,0.166234,60156.0,60154.0,0.166238]
[1726418855533,0.02608471,60156.0,60154.0,0.166238]
[1726418855970,0.02608471,60156.0,60155.0,0.166237]
[1726418856220,0.02608471,60156.0,60153.0,0.166241]
[1726418856870,0.02608471,60156.0,60155.0,0.166237]
[1726418857090,0.02608471,60156.0,60155.0,0.498711]
[1726418857348,0.02608471,60156.0,60155.0,0.831185]
[1726418857609,0.02608471,60156.0,60152.0,0.19170858]
[1726418857610,0.005,60157.0,60156.0,0.83117]
[1726418858282,0.3157,60158.0,60157.0,0.498694]
[1726418859194,0.3157,60158.0,60157.0,0.493694]
[1726418859894,0.3217,60158.0,60157.0,0.493694]
[1726418860781,0.3217,60158.0,60157.0,1.15862]
[1726418860782,0.006,60158.0,60157.0,1.15862]
[1726418861000,0.01,60158.0,60157.0,1.18162]
[1726418861243,0.004,60158.0,60157.0,1.18162]
[1726418861456,0.001644,60168.0,60167.0,0.166204]
[1726418861674,0.001644,60168.0,60167.0,0.163204]
[1726418861904,0.001644,60168.0,60167.0,0.160204]
[1726418862139,0.001644,60168.0,60167.0,0.492612]
[1726418862371,0.001644,60168.0,60167.0,0.82502]
[1726418862819,0.001644,60168.0,60167.0,0.82602]
[1726418863077,0.001644,60168.0,60167.0,0.82502]
[1726418863323,0.001644,60168.0,60167.0,0.82602]
[1726418863554,0.014644,60168.0,60167.0,0.82702]
[1726418863990,0.001644,60168.0,60167.0,0.82602]
[1726418864440,0.009644,60168.0,60167.0,0.82702]
[1726418865360,0.0039791,60179.0,60178.0,1.193214]
[1726418865594,0.0039791,60179.0,60178.0,1.37792258]
[1726418865823,0.0039791,60179.0,60178.0,0.49852]
[1726418866518,0.0039791,60179.0,60178.0,0.830867]
[1726418867177,0.0149791,60179.0,60178.0,0.831867]
[1726418867632,0.0039791,60179.0,60178.0,0.830867]
[1726418867869,0.0049791,60179.0,60178.0,0.837867]
[1726418868347,0.0039791,60179.0,60178.0,0.49852]
[1726418868574,0.0039791,60179.0,60178.0,0.51152]
[1726418868802,0.0039791,60179.0,60178.0,0.835867]
[1726418869045,0.0039791,60179.0,60178.0,0.839867]
[1726418869268,0.0039791,60179.0,60178.0,0.835867]
[1726418869494,0.0039791,60179.0,60178.0,0.837867]
[1726418869991,0.0039791,60179.0,60178.0,0.830867]
[1726418870229,0.0039791,60179.0,60178.0,0.832867]
[1726418870450,0.0039791,60179.0,60178.0,0.836867]
[1726418870884,0.0039791,60179.0,60178.0,0.832867]
[1726418871103,0.0039791,60179.0,60178.0,0.835867]
[1726418871547,0.0039791,60179.0,60178.0,0.832867]
[1726418871765,0.0039791,60179.0,60178.0,0.830867]
[1726418871982,0.0039791,60179.0,60178.0,0.836867]
[1726418872200,0.0039791,60179.0,60178.0,0.835867]
[1726418872634,0.0039791,60179.0,60178.0,0.837867]
[1726418875313,0.0039791,60179.0,60178.0,0.837667]
[1726418876219,0.0056231,60179.0,60178.0,0.837667]
[1726418878366,0.0056231,60179.0,60178.0,1.170014]
[1726418882234,0.0056231,60179.0,60178.0,1.29548434]
[1726418883581,0.3268231,60179.0,60178.0,0.96313734]
[1726418885133,0.3268231,60179.0,60178.0,0.837667]
[1726418885360,0.3268231,60179.0,60178.0,0.172973]
[1726418885586,0.3268231,60179.0,60178.0,0.007]
[1726418885837,0.3268231,60179.0,60178.0,0.173173]
[1726418888093,0.3268231,60179.0,60178.0,0.173996]
[1726418888523,0.4929931,60179.0,60178.0,0.007823]
[1726418888731,0.8253341,60179.0,60178.0,0.007823]
[1726418889594,0.8253341,60179.0,60178.0,0.002823]
[1726418890059,0.49852,60178.0,60177.0,0.000822]
[1726418890291,0.49852,60178.0,60152.0,0.1]
[1726418890292,0.166199,60169.0,60152.0,0.1]
[1726418890552,0.166199,60169.0,60150.0,0.10127242]
[1726418890553,0.5091,60173.0,60151.0,0.0212387]
[1726418890771,0.12547034,60169.0,60154.0,0.332475]
[1726418890989,0.12547034,60169.0,60151.0,0.000822]
[1726418890990,0.33242,60165.0,60153.0,0.12547034]
[1726418891199,0.166216,60163.0,60158.0,0.166226]
[1726418891428,0.33242,60165.0,60160.0,0.166221]
[1726418891429,0.16621,60165.0,60160.0,0.166221]
[1726418891649,0.166213,60164.0,60157.0,0.332458]
[1726418891902,0.332402,60169.0,60151.0,0.000822]
[1726418892130,0.166223,60161.0,60151.0,0.000822]
[1726418892360,0.498655,60162.0,60156.0,0.166234]
[1726418892608,0.16622,60161.0,60156.0,0.166234]
[1726418892860,0.16622,60161.0,60157.0,0.001]
[1726418893094,0.16622,60161.0,60156.0,0.166234]
[1726418893773,0.16622,60161.0,60155.0,0.332474]
[1726418894005,0.16622,60161.0,60156.0,0.166232]
[1726418894466,0.16922,60161.0,60156.0,0.166232]
[1726418894721,0.003,60161.0,60158.0,0.166228]
[1726418894930,0.332421,60165.0,60158.0,0.166228]
[1726418894931,0.166214,60164.0,60158.0,0.166228]
[1726418895146,0.02608279,60162.0,60158.0,0.166228]
[1726418896078,0.02608279,60162.0,60158.0,0.169228]
[1726418896522,0.02608279,60162.0,60158.0,0.166228]
[1726418896736,0.02608279,60162.0,60158.0,0.168228]
[1726418897172,0.02608279,60162.0,60159.0,0.166226]
[1726418897598,0.02608279,60162.0,60158.0,0.19339299]
[1726418897816,0.02608279,60162.0,60159.0,0.332451]
[1726418898063,0.02608279,60162.0,60158.0,0.19339299]
[1726418898064,0.02608279,60162.0,60161.0,0.831102]
[1726418898277,0.02608279,60162.0,60161.0,1.163543]
[1726418898553,0.0056231,60179.0,60172.0,0.16619]
[1726418899011,0.0056231,60179.0,60171.0,0.19139299]
[1726418899012,0.675287,60173.0,60171.0,0.19139299]
[1726418899231,0.70136524,60173.0,60171.0,0.19139299]
[1726418899482,0.34517824,60173.0,60172.0,0.16619]
[1726418899697,0.3191,60173.0,60172.0,0.49857]
[1726418899912,0.3191,60173.0,60172.0,0.83095]
[1726418900333,0.0056231,60179.0,60178.0,0.166173]
[1726418900558,0.0056231,60179.0,60178.0,0.35756599]
[1726418900993,0.0056231,60179.0,60178.0,0.68991299]
[1726418901854,0.0106231,60179.0,60178.0,0.68991299]
[1726418902499,0.0056231,60179.0,60178.0,0.68991299]
[1726418902716,0.0056231,60179.0,60175.0,0.16618]
[1726418902930,0.0056231,60179.0,60172.0,0.004]
[1726418903183,0.166175,60178.0,60170.0,0.19139299]
[1726418903408,0.166175,60178.0,60173.0,0.166186]
[1726418904500,0.166175,60178.0,60175.0,0.002]
[1726418904730,0.19225101,60178.0,60174.0,0.166184]
[1726418904996,0.166175,60178.0,60174.0,0.166184]
[1726418905651,0.166175,60178.0,60171.0,0.332381]
[1726418905880,0.166175,60178.0,60173.0,0.166185]
[1726418906091,0.166175,60178.0,60174.0,0.008]
[1726418906519,0.166175,60178.0,60174.0,0.003]
[1726418906906,0.0056231,60179.0,60174.0,0.169184]
[1726418907111,0.1717961,60179.0,60174.0,0.169184]
[1726418907986,0.1717961,60179.0,60174.0,0.166184]
[1726418908194,0.166174,60178.0,60174.0,0.168184]
[1726418908401,0.166174,60178.0,60174.0,0.173184]
[1726418908847,0.19224979,60178.0,60174.0,0.168184]
[1726418909061,0.19224979,60178.0,60174.0,0.166184]
[1726418909913,0.19224979,60178.0,60175.0,0.166181]
[1726418909914,0.02607579,60178.0,60175.0,0.166181]
[1726418910144,0.03007579,60178.0,60177.0,0.166176]
[1726418910638,0.03007579,60178.0,60177.0,0.83088]
[1726418910877,0.03007579,60178.0,60177.0,0.498528]
[1726418911111,0.03007579,60178.0,60177.0,0.83088]
[1726418911112,0.03707579,60178.0,60177.0,0.83088]
[1726418911396,0.0056231,60179.0,60178.0,0.49852]
[1726418911652,0.0056231,60179.0,60178.0,0.68591299]
[1726418912149,0.0056231,60179.0,60178.0,1.34360699]
[1726418912533,0.0056231,60179.0,60178.0,1.00725999]
[1726418912632,0.0056231,60179.0,60178.0,1.36260699]
[1726418913847,0.0056231,60179.0,60178.0,1.36360699]
[1726418913848,0.0076231,60179.0,60178.0,1.36360699]
[1726418914057,0.0056231,60179.0,60178.0,1.36260699]
[1726418914268,0.0056231,60179.0,60178.0,1.37660699]
[1726418914887,0.0096231,60179.0,60178.0,1.37660699]
[1726418915508,0.0056231,60179.0,60178.0,1.37660699]
[1726418915964,0.0056231,60179.0,60178.0,1.39060699]
[1726418917246,0.0056231,60179.0,60178.0,1.42392699]
[1726418917674,0.0056231,60179.0,60178.0,1.47367128]
[1726418917881,0.0056231,60179.0,60178.0,1.42392699]
[1726418922170,0.001646,60186.0,60185.0,0.83077]
[1726418922396,0.001646,60186.0,60185.0,1.04516299]
[1726418922649,0.001646,60186.0,60185.0,1.37747099]
[1726418924646,0.001646,60186.0,60185.0,1.38747099]
[1726418925060,0.001646,60186.0,60185.0,1.39947099]
[1726418930704,0.001646,60186.0,60185.0,1.06716299]
[1726418937218,0.001646,60186.0,60185.0,1.05516299]
[1726418937673,0.001646,60186.0,60185.0,1.06416299]
[1726418938147,0.001646,60186.0,60185.0,1.04516299]
[1726418938359,0.001646,60186.0,60185.0,1.06116299]
[1726418940357,0.001646,60186.0,60185.0,1.39347099]
[1726418940605,0.001646,60186.0,60185.0,1.06116299]
[1726418944441,0.001646,60186.0,60185.0,1.03816299]
[1726418946920,0.001646,60186.0,60185.0,1.06116299]
[1726418947385,0.001646,60186.0,60185.0,1.39347099]
[1726418947620,0.001646,60186.0,60185.0,1.41394503]
[1726418948732,0.001646,60186.0,60185.0,1.41393191]
[1726418948947,0.001646,60186.0,60185.0,1.43440149]
[1726418949168,0.001646,60186.0,60185.0,1.41394057]
[1726418950555,0.001646,60186.0,60185.0,1.463585]
[1726418952286,0.001646,60186.0,60185.0,1.46359311]
[1726418952511,0.001646,60186.0,60185.0,1.39347099]
[1726418953590,0.001646,60186.0,60185.0,1.44311542]
[1726418954676,0.001646,60186.0,60185.0,1.39347099]
[1726418955542,0.001646,60186.0,60185.0,1.73230561]
[1726418956674,0.001646,60186.0,60185.0,1.75721841]
[1726418957570,0.001646,60186.0,60185.0,1.78213122]
[1726418958016,0.001646,60186.0,60185.0,1.71615285]
[1726418961527,0.001646,60186.0,60185.0,1.61214524]
[1726418961739,0.001646,60186.0,60185.0,1.59158882]
[1726418961952,0.001646,60186.0,60185.0,1.61213795]
[1726418962163,0.001646,60186.0,60185.0,1.59158882]
[1726418962377,0.001646,60186.0,60185.0,1.61213486]
[1726418964204,0.001646,60186.0,60185.0,1.61226299]
[1726418966190,0.001646,60186.0,60185.0,1.27995499]
[1726418966685,0.001646,60186.0,60185.0,1.61226299]
[1726418970904,0.001646,60186.0,60185.0,1.27995499]
[1726418971341,0.001646,60186.0,60185.0,1.61226299]
[1726418972628,0.001646,60186.0,60185.0,1.61224911]
[1726418972838,0.001646,60186.0,60185.0,1.61224919]
[1726418973507,0.001646,60186.0,60185.0,1.59171695]
[1726418973740,0.001646,60186.0,60185.0,1.61225572]
[1726418977006,0.001646,60186.0,60185.0,1.4868411]
[1726418977211,0.001646,60186.0,60185.0,1.61225572]
[1726418977429,0.001646,60186.0,60185.0,1.27994772]
[1726418977858,0.001646,60186.0,60185.0,1.71644244]
[1726418978066,0.001646,60186.0,60185.0,1.73703143]
[1726418978491,0.001646,60186.0,60185.0,1.61230594]
[1726418978915,0.001646,60186.0,60185.0,1.73703689]
[1726418979601,0.001646,60186.0,60185.0,1.61230594]
[1726418980289,0.001646,60186.0,60185.0,1.73703713]
[1726418980506,0.001646,60186.0,60185.0,1.71644814]
[1726418980723,0.001646,60186.0,60185.0,1.73703794]
[1726418980932,0.001646,60186.0,60185.0,1.61230675]
[1726418981137,0.001646,60186.0,60185.0,1.73704085]
[1726418981533,0.001646,60186.0,60185.0,1.61230675]
[1726418982037,0.001646,60186.0,60185.0,0.59170508]
[1726418982260,0.185046,60186.0,60185.0,0.7797345]
[1726418982478,0.185046,60186.0,60185.0,1.1120425]
[1726418982694,0.185046,60186.0,60185.0,1.21183865]
[1726418982924,0.185046,60186.0,60185.0,1.22845712]
[1726418983163,0.185046,60186.0,60185.0,0.89314912]
[1726418983375,0.185046,60186.0,60185.0,0.96799696]
[1726418983581,0.185046,60186.0,60185.0,0.96599696]
[1726418984260,0.185046,60186.0,60185.0,0.63368896]
[1726418984463,0.185046,60186.0,60185.0,0.89114912]
[1726418984793,0.185046,60186.0,60185.0,0.99094411]
[1726418984998,0.185046,60186.0,60185.0,0.99494411]
[1726418985211,0.185046,60186.0,60185.0,0.86952949]
[1726418985415,0.185046,60186.0,60185.0,1.32725309]
[1726418986027,0.185046,60186.0,60185.0,1.35219407]
[1726418987477,0.185046,60186.0,60185.0,1.22745712]
[1726418987695,0.185046,60186.0,60185.0,1.32725447]
[1726418987891,0.185046,60186.0,60185.0,1.35219407]
[1726418988333,0.185046,60186.0,60185.0,1.35174406]
[1726418989160,0.185046,60186.0,60185.0,1.22699568]
[1726418989583,0.001646,60186.0,60185.0,1.22699568]
[1726418989800,0.001646,60186.0,60185.0,1.24743384]
[1726418990456,0.001646,60186.0,60185.0,1.22699568]
[1726418990668,0.001646,60186.0,60185.0,1.60272524]
[1726418993249,0.001646,60186.0,60185.0,1.60286763]
[1726418996651,0.001646,60186.0,60185.0,1.58230368]
[1726418996929,0.001646,60186.0,60185.0,1.60286972]
[1726419000795,0.001646,60186.0,60185.0,1.4774551]
[1726419000988,0.001646,60186.0,60185.0,1.70379099]
[1726419005760,0.001646,60186.0,60185.0,0.86580527]
[1726419005997,0.001646,60186.0,60185.0,0.99121989]
[1726419006211,0.001646,60186.0,60185.0,0.89141112]
[1726419006438,0.001646,60186.0,60185.0,1.2985762]
[1726419006913,0.001646,60186.0,60185.0,1.22371912]
[1726419007126,0.001646,60186.0,60185.0,1.29857357]
[1726419010299,0.001646,60186.0,60185.0,0.96626557]
[1726419010932,0.189146,60186.0,60185.0,0.96626557]
[1726419012412,0.189146,60186.0,60185.0,1.29857357]
[1726419013125,0.189146,60186.0,60185.0,0.96626557]
[1726419015455,0.189146,60186.0,60185.0,0.44656064]
[1726419016342,0.189146,60186.0,60185.0,0.61271464]
[1726419019541,0.189146,60186.0,60185.0,0.61353781]
[1726419023532,0.189146,60186.0,60185.0,0.56364308]
[1726419023738,0.189146,60186.0,60185.0,0.004823]
[1726419023954,0.189146,60186.0,60185.0,0.29639162]
[1726419025028,0.189146,60186.0,60185.0,0.3462888]
[1726419025444,0.189146,60186.0,60185.0,0.29639162]
[1726419025649,0.189146,60186.0,60185.0,0.34628964]
[1726419027168,0.189146,60186.0,60185.0,0.05472102]
[1726419027521,0.355297,60186.0,60185.0,0.004823]
[1726419027684,0.189146,60186.0,60185.0,0.004823]
[1726419028737,0.189146,60186.0,60185.0,0.000823]
[1726419029122,0.189146,60186.0,60185.0,0.29539162]
[1726419030333,0.189146,60186.0,60185.0,0.29239162]
[1726419030706,0.189146,60186.0,60185.0,0.29539162]
[1726419031622,0.20602335,60186.0,60185.0,0.29539162]
[1726419033983,0.20602335,60186.0,60185.0,0.169977]
[1726419034189,0.20602335,60186.0,60185.0,0.29539162]
[1726419034622,0.20602335,60186.0,60185.0,0.12923762]
[1726419034861,0.20602335,60186.0,60185.0,0.29539162]
[1726419038923,0.20602335,60186.0,60185.0,0.003823]
[1726419050092,0.20102335,60186.0,60185.0,0.003823]
[1726419050502,0.20102335,60186.0,60185.0,0.169977]
[1726419051157,0.20102335,60186.0,60185.0,0.502285]
[1726419051382,0.20102335,60186.0,60185.0,0.5521877]
[1726419051593,0.184146,60186.0,60185.0,0.5521877]
[1726419051824,0.184146,60186.0,60185.0,0.2198797]
[1726419051825,0.20103325,60186.0,60185.0,0.2198797]
[1726419052053,0.20103325,60186.0,60185.0,0.0537257]
[1726419052274,0.20103325,60186.0,60185.0,0.2198797]
[1726419052482,0.20103325,60186.0,60185.0,0.5521877]
[1726419052906,0.20103325,60186.0,60185.0,0.55218892]
[1726419053333,0.20103325,60186.0,60185.0,0.21988092]
[1726419055312,0.20103325,60186.0,60185.0,0.169977]
[1726419055521,0.20103325,60186.0,60185.0,0.55218892]
[1726419057057,0.20267925,60186.0,60185.0,0.55218892]
[1726419060993,0.20267925,60186.0,60185.0,0.502285]
[1726419061225,0.20267925,60186.0,60185.0,0.55219201]
[1726419062291,0.20267925,60186.0,60185.0,0.502285]
[1726419064177,0.185792,60186.0,60185.0,0.502285]
[1726419064387,0.20268119,60186.0,60185.0,0.502285]
[1726419066808,0.20268119,60186.0,60185.0,0.003823]
[1726419067697,0.20268119,60186.0,60185.0,0.169977]
[1726419068360,0.20268119,60186.0,60185.0,0.003823]
[1726419069216,0.20268119,60186.0,60185.0,0.169977]
[1726419069451,0.20268119,60186.0,60185.0,0.003823]
[1726419070109,0.36883219,60186.0,60185.0,0.003823]
[1726419070568,0.70113519,60186.0,60185.0,0.003823]
[1726419071001,0.70113519,60186.0,60185.0,0.000823]
[1726419071233,0.70213519,60186.0,60185.0,0.000823]
[1726419071648,0.70113519,60186.0,60185.0,0.000823]
[1726419072023,0.70313519,60186.0,60185.0,0.000823]
[1726419072468,0.70713519,60186.0,60185.0,0.000823]
[1726419072657,0.70313519,60186.0,60185.0,0.000823]
[1726419073004,0.70813519,60186.0,60185.0,0.000823]
[1726419074715,0.37583219,60186.0,60185.0,0.000823]
[1726419075541,0.70813519,60186.0,60185.0,0.000823]
[1726419077919,1.04043819,60186.0,60185.0,0.000823]
[1726419078432,0.498504,60180.0,60179.0,0.000823]
[1726419078661,0.166168,60180.0,60179.0,0.000823]
[1726419078865,0.18301952,60180.0,60179.0,0.000823]
[1726419079942,0.18301952,60180.0,60179.0,0.001823]
[1726419080364,0.18301952,60180.0,60179.0,0.005823]
[1726419081058,0.18301952,60180.0,60179.0,0.001823]
[1726419081268,0.18301952,60180.0,60179.0,0.004823]
[1726419081699,0.18301952,60180.0,60179.0,0.000823]